fUST/lending_fUST_20250425
["ID","MTS","AMOUNT","RATE_DAILY","PERIOD"]
[358940002,1745570260930,-447.05090459,0.00016438,2]
[358940003,1745570260955,-151.0,0.00016438,2]
[358940004,1745570260976,-500.0,0.00016438,2]
[358940005,1745570260997,-500.0,0.00016438,2]
[358940006,1745570261024,-511.55543148,0.00016438,2]
[358940007,1745570261046,-509.15203663,0.00016438,2]
[358940008,1745570261068,-153.721826,0.00016438,2]
[358940009,1745570261090,-529.15342518,0.00016438,2]
[358940010,1745570261111,-500.0,0.00016438,2]
[358940011,1745570261133,-513.54613846,0.00016438,2]
[358940012,1745570261159,-500.0,0.00016438,2]
[358940013,1745570261183,-500.0,0.00016438,2]
[358940014,1745570261207,-246.801785,0.00016438,2]
[358940015,1745570261230,-508.00080123,0.00016438,2]
[358940016,1745570261254,-500.0,0.00016438,2]
[358940017,1745570261279,-500.0,0.00016438,2]
[358940018,1745570261301,-509.82837839,0.00016438,2]
[358940019,1745570261324,-500.0,0.00016438,2]
[358940020,1745570261346,-202.39061212,0.00016438,2]
[358940021,1745570261368,-500.0,0.00016438,2]
[358940022,1745570261389,-500.0,0.00016438,2]
[358940023,1745570261411,-500.0,0.00016438,2]
[358940024,1745570261432,-500.0,0.00016438,2]
[358940025,1745570261453,-384.06538302,0.00016438,2]
[358940026,1745570261475,-500.0,0.00016438,2]
[358940027,1745570261496,-500.0,0.00016438,2]
[358940028,1745570261518,-500.0,0.00016438,2]
[358940029,1745570261540,-500.0,0.00016438,2]
[358940030,1745570261563,-504.84861924,0.00016438,2]
[358940031,1745570261584,-500.0,0.00016438,2]
[358940032,1745570261606,-500.0,0.00016438,2]
[358940033,1745570261628,-500.0,0.00016438,2]
[358940034,1745570261648,-519.57417145,0.00016438,2]
[358940035,1745570261672,-510.15617936,0.00016438,2]
[358940036,1745570261697,-157.30355766,0.00016438,2]
[358940037,1745570261719,-500.0,0.00016438,2]
[358940038,1745570261740,-500.0,0.00016438,2]
[358940039,1745570261764,-503.22644727,0.00016438,2]
[358940040,1745570261785,-500.0,0.00016438,2]
[358940041,1745570261807,-500.0,0.00016438,2]
[358940042,1745570261828,-500.0,0.00016438,2]
[358940043,1745570261848,-500.0,0.00016438,2]
[358940044,1745570261869,-151.0,0.00016438,2]
[358940045,1745570261890,-500.0,0.00016438,2]
[358940046,1745570261911,-500.0,0.00016438,2]
[358940047,1745570261931,-835.49,0.00016438,2]
[358940048,1745570261955,-500.0,0.00016438,2]
[358940049,1745570261976,-502.88417489,0.00016438,2]
[358940050,1745570261997,-593.02676707,0.00016438,2]
[358940051,1745570262020,-500.0,0.00016438,2]
[358940052,1745570262040,-151.0,0.00016438,2]
[358940053,1745570262062,-232.086262,0.00016438,2]
[358940054,1745570262082,-232.086262,0.00016438,2]
[358940055,1745570262103,-797.49,0.00016438,2]
[358940056,1745570262123,-269.468908,0.00016438,2]
[358940057,1745570262143,-269.468908,0.00016438,2]
[358940058,1745570262164,-500.0,0.00016438,2]
[358940059,1745570262185,-151.0,0.00016438,2]
[358940060,1745570262207,-1226.19,0.00016438,2]
[358940061,1745570262228,-151.0,0.00016438,2]
[358940062,1745570262248,-500.0,0.00016438,2]
[358940063,1745570262270,-151.0,0.00016438,2]
[358940064,1745570262291,-500.0,0.00016438,2]
[358940065,1745570262313,-500.0,0.00016438,2]
[358940066,1745570262333,-500.0,0.00016438,2]
[358940067,1745570262354,-151.0,0.00016438,2]
[358940068,1745570262375,-500.0,0.00016438,2]
[358940069,1745570262396,-151.0,0.00016438,2]
[358940070,1745570262417,-151.0,0.00016438,2]
[358940071,1745570262438,-979.75,0.00016438,2]
[358940072,1745570262459,-500.0,0.00016438,2]
[358940073,1745570262480,-500.0,0.00016438,2]
[358940074,1745570262502,-305.573492,0.00016438,2]
[358940075,1745570262524,-151.0,0.00016438,2]
[358940076,1745570262545,-151.0,0.00016438,2]
[358940077,1745570262567,-305.573492,0.00016438,2]
[358940078,1745570262587,-500.0,0.00016438,2]
[358940079,1745570262607,-151.0,0.00016438,2]
[358940080,1745570262628,-970.61,0.00016438,2]
[358940081,1745570262650,-151.0,0.00016438,2]
[358940082,1745570262671,-500.0,0.00016438,2]
[358940083,1745570262692,-500.0,0.00016438,2]
[358940084,1745570262714,-1146.53,0.00016438,2]
[358940085,1745570262735,-500.0,0.00016438,2]
[358940086,1745570262756,-500.0,0.00016438,2]
[358940087,1745570262787,-500.0,0.00016438,2]
[358940088,1745570262812,-151.0,0.00016438,2]
[358940089,1745570263020,-500.0,0.00016438,2]
[358940090,1745570263042,-500.0,0.00016438,2]
[358940091,1745570263064,-151.0,0.00016438,2]
[358940092,1745570263086,-835.6,0.00016438,2]
[358940093,1745570263111,-500.0,0.00016438,2]
[358940094,1745570263140,-500.0,0.00016438,2]
[358940095,1745570263166,-305.5045388,0.00016438,2]
[358940096,1745570263189,-861.29,0.00016438,2]
[358940097,1745570263212,-500.0,0.00016438,2]
[358940098,1745570263235,-500.0,0.00016438,2]
[358940099,1745570263258,-500.0,0.00016438,2]
[358940100,1745570263283,-500.0,0.00016438,2]
[358940101,1745570263306,-151.0,0.00016438,2]
[358940102,1745570263331,-151.0,0.00016438,2]
[358940103,1745570263354,-500.0,0.00016438,2]
[358940104,1745570263376,-500.0,0.00016438,2]
[358940105,1745570263396,-500.0,0.00016438,2]
[358940106,1745570263417,-500.0,0.00016438,2]
[358940107,1745570263442,-500.0,0.00016438,2]
[358940108,1745570263464,-500.0,0.00016438,2]
[358940109,1745570263486,-500.0,0.00016438,2]
[358940110,1745570263508,-500.0,0.00016438,2]
[358940111,1745570263529,-716.46,0.00016438,2]
[358940112,1745570263551,-720.03,0.00016438,2]
[358940113,1745570263576,-500.0,0.00016438,2]
[358940114,1745570263597,-151.0,0.00016438,2]
[358940115,1745570263618,-500.0,0.00016438,2]
[358940116,1745570263639,-504.56527113,0.00016438,2]
[358940117,1745570263660,-151.0,0.00016438,2]
[358940118,1745570263683,-500.0,0.00016438,2]
[358940119,1745570263704,-507.85889462,0.00016438,2]
[358940120,1745570263725,-440.15049375,0.00016438,2]
[358940121,1745570263747,-500.0,0.00016438,2]
[358940122,1745570263768,-500.0,0.00016438,2]
[358940123,1745570263790,-500.0,0.00016438,2]
[358940124,1745570263812,-500.0,0.00016438,2]
[358940125,1745570263833,-500.0,0.00016438,2]
[358940126,1745570263856,-827.56,0.00016438,2]
[358940127,1745570263877,-500.0,0.00016438,2]
[358940128,1745570263901,-500.0,0.00016438,2]
[358940129,1745570263924,-502.30106001,0.00016438,2]
[358940130,1745570263953,-745.24,0.00016438,2]
[358940131,1745570263982,-283.03468835,0.00016438,2]
[358940132,1745570264008,-500.0,0.00016438,2]
[358940133,1745570264030,-507.68178201,0.00016438,2]
[358940134,1745570264052,-500.0,0.00016438,2]
[358940135,1745570264074,-500.0,0.00016438,2]
[358940136,1745570264099,-500.0,0.00016438,2]
[358940137,1745570264120,-501.81760067,0.00016438,2]
[358940138,1745570264142,-500.0,0.00016438,2]
[358940139,1745570264164,-501.15550901,0.00016438,2]
[358940140,1745570264186,-500.0,0.00016438,2]
[358940141,1745570264208,-500.0,0.00016438,2]
[358940142,1745570264229,-400.46293107,0.00016438,2]
[358940143,1745570264251,-500.0,0.00016438,2]
[358940144,1745570264276,-500.0,0.00016438,2]
[358940145,1745570264299,-500.0,0.00016438,2]
[358940146,1745570264324,-684.586252,0.00016438,2]
[358940147,1745570264345,-200.1904558,0.00016438,2]
[358940148,1745570264367,-500.0,0.00016438,2]
[358940149,1745570264388,-500.0,0.00016438,2]
[358940150,1745570264409,-545.9939411,0.00016438,2]
[358940151,1745570264432,-500.0,0.00016438,2]
[358940152,1745570264456,-500.0,0.00016438,2]
[358940153,1745570264480,-684.586252,0.00016438,2]
[358940154,1745570264503,-679.7,0.00016438,2]
[358940155,1745570264528,-151.0,0.00016438,2]
[358940156,1745570264551,-236.709066,0.00016438,2]
[358940157,1745570264575,-236.709066,0.00016438,2]
[358940158,1745570264596,-507.40013188,0.00016438,2]
[358940159,1745570264618,-236.709066,0.00016438,2]
[358940160,1745570264640,-236.709066,0.00016438,2]
[358940161,1745570264662,-500.0,0.00016438,2]
[358940162,1745570264684,-500.0,0.00016438,2]
[358940163,1745570264706,-506.04399442,0.00016438,2]
[358940164,1745570264730,-151.0,0.00016438,2]
[358940165,1745570264754,-151.0,0.00016438,2]
[358940166,1745570264777,-500.0,0.00016438,2]
[358940167,1745570264801,-500.0,0.00016438,2]
[358940168,1745570264824,-506.98250512,0.00016438,2]
[358940169,1745570264847,-521.72983119,0.00016438,2]
[358940170,1745570264869,-500.0,0.00016438,2]
[358940171,1745570264891,-500.0,0.00016438,2]
[358940172,1745570264913,-500.0,0.00016438,2]
[358940173,1745570264937,-500.0,0.00016438,2]
[358940174,1745570264959,-500.0,0.00016438,2]
[358940175,1745570264980,-436.18267976,0.00016438,2]
[358940176,1745570265002,-500.0,0.00016438,2]
[358940177,1745570265027,-500.0,0.00016438,2]
[358940178,1745570265047,-500.0,0.00016438,2]
[358940179,1745570265070,-500.0,0.00016438,2]
[358940180,1745570265092,-151.0,0.00016438,2]
[358940181,1745570265113,-500.0,0.00016438,2]
[358940182,1745570265136,-151.0,0.00016438,2]
[358940183,1745570265158,-151.0,0.00016438,2]
[358940184,1745570265184,-274.66985343,0.00016438,2]
[358940185,1745570265208,-500.0,0.00016438,2]
[358940186,1745570265229,-500.0,0.00016438,2]
[358940187,1745570265251,-500.0,0.00016438,2]
[358940188,1745570265271,-500.0,0.00016438,2]
[358940189,1745570265292,-500.0,0.00016438,2]
[358940190,1745570265316,-500.0,0.00016438,2]
[358940191,1745570265337,-500.0,0.00016438,2]
[358940192,1745570265360,-193.27352657,0.00016438,2]
[358940193,1745570265384,-500.0,0.00016438,2]
[358940194,1745570265408,-500.0,0.00016438,2]
[358940195,1745570265429,-500.0,0.00016438,2]
[358940196,1745570265451,-500.0,0.00016438,2]
[358940197,1745570265475,-500.0,0.00016438,2]
[358940198,1745570265496,-500.0,0.00016438,2]
[358940199,1745570265519,-779.07,0.00016438,2]
[358940200,1745570265542,-382.1314834,0.00016438,2]
[358940201,1745570265564,-500.0,0.00016438,2]
[358940202,1745570265586,-500.0,0.00016438,2]
[358940203,1745570265609,-891.93,0.00016438,2]
[358940204,1745570265631,-500.0,0.00016438,2]
[358940205,1745570265653,-151.0,0.00016438,2]
[358940206,1745570265674,-500.0,0.00016438,2]
[358940207,1745570265695,-500.0,0.00016438,2]
[358940208,1745570265717,-151.0,0.00016438,2]
[358940209,1745570265740,-500.0,0.00016438,2]
[358940210,1745570265763,-500.0,0.00016438,2]
[358940211,1745570265787,-2713.99,0.00016438,2]
[358940212,1745570265812,-748.96,0.00016438,2]
[358940213,1745570265834,-151.0,0.00016438,2]
[358940214,1745570265855,-151.0,0.00016438,2]
[358940215,1745570265877,-500.0,0.00016438,2]
[358940216,1745570265900,-500.0,0.00016438,2]
[358940217,1745570265923,-752.88,0.00016438,2]
[358940218,1745570265949,-500.0,0.00016438,2]
[358940219,1745570265972,-151.0,0.00016438,2]
[358940220,1745570265995,-151.0,0.00016438,2]
[358940221,1745570266018,-500.0,0.00016438,2]
[358940222,1745570266040,-500.0,0.00016438,2]
[358940223,1745570266064,-500.0,0.00016438,2]
[358940224,1745570266085,-502.91483603,0.00016438,2]
[358940225,1745570266107,-500.0,0.00016438,2]
[358940226,1745570266127,-500.0,0.00016438,2]
[358940227,1745570266150,-500.0,0.00016438,2]
[358940228,1745570266173,-500.0,0.00016438,2]
[358940229,1745570266196,-151.0,0.00016438,2]
[358940230,1745570266219,-151.0,0.00016438,2]
[358940231,1745570266241,-500.0,0.00016438,2]
[358940232,1745570266266,-956.54,0.00016438,2]
[358940233,1745570266289,-151.0,0.00016438,2]
[358940234,1745570266314,-151.0,0.00016438,2]
[358940235,1745570266337,-500.0,0.00016438,2]
[358940236,1745570266358,-644.15260783,0.00016438,2]
[358940237,1745570266380,-464.3298252,0.00016438,2]
[358940238,1745570266400,-500.0,0.00016438,2]
[358940239,1745570266422,-152.187494,0.00016438,2]
[358940240,1745570266444,-500.0,0.00016438,2]
[358940241,1745570266466,-629.59,0.00016438,2]
[358940242,1745570266488,-500.0,0.00016438,2]
[358940243,1745570266510,-500.0,0.00016438,2]
[358940244,1745570266533,-589.73,0.00016438,2]
[358940245,1745570266555,-340.69,0.00016438,2]
[358940246,1745570266578,-500.0,0.00016438,2]
[358940247,1745570266600,-500.0,0.00016438,2]
[358940248,1745570266622,-500.0,0.00016438,2]
[358940249,1745570266644,-500.0,0.00016438,2]
[358940250,1745570266665,-1331.89,0.00016438,2]
[358940251,1745570266686,-555.456987,0.00016438,2]
[358940252,1745570266708,-500.0,0.00016438,2]
[358940253,1745570266729,-151.0,0.00016438,2]
[358940254,1745570266751,-151.0,0.00016438,2]
[358940255,1745570266774,-500.0,0.00016438,2]
[358940256,1745570266796,-659.83,0.00016438,2]
[358940257,1745570266959,-1550.23,0.00016438,2]
[358940258,1745570266984,-500.0,0.00016438,2]
[358940259,1745570267007,-641.27,0.00016438,2]
[358940260,1745570267029,-500.0,0.00016438,2]
[358940261,1745570267050,-512.71032942,0.00016438,2]
[358940262,1745570267072,-500.0,0.00016438,2]
[358940263,1745570267093,-503.78137688,0.00016438,2]
[358940264,1745570267115,-500.0,0.00016438,2]
[358940265,1745570267137,-500.0,0.00016438,2]
[358940266,1745570267159,-502.28901636,0.00016438,2]
[358940267,1745570267183,-151.0,0.00016438,2]
[358940268,1745570267205,-151.0,0.00016438,2]
[358940269,1745570267228,-3028.97,0.00016438,2]
[358940270,1745570267250,-500.0,0.00016438,2]
[358940271,1745570267273,-500.0,0.00016438,2]
[358940272,1745570267296,-618.79,0.00016438,2]
[358940273,1745570267318,-500.0,0.00016438,2]
[358940274,1745570267340,-500.0,0.00016438,2]
[358940275,1745570267361,-500.0,0.00016438,2]
[358940276,1745570267382,-500.0,0.00016438,2]
[358940277,1745570267404,-500.0,0.00016438,2]
[358940278,1745570267427,-1557.45,0.00016438,2]
[358940279,1745570267457,-500.0,0.00016438,2]
[358940280,1745570267485,-500.0,0.00016438,2]
[358940281,1745570267508,-558.73179044,0.00016438,2]
[358940282,1745570267531,-500.0,0.00016438,2]
[358940283,1745570267554,-511.53305846,0.00016438,2]
[358940284,1745570267579,-550.07019212,0.00016438,2]
[358940285,1745570267602,-500.0,0.00016438,2]
[358940286,1745570267626,-500.0,0.00016438,2]
[358940287,1745570267648,-500.0,0.00016438,2]
[358940288,1745570267670,-510.68000595,0.00016438,2]
[358940289,1745570267693,-500.0,0.00016438,2]
[358940290,1745570267718,-965.84,0.00016438,2]
[358940291,1745570267741,-500.0,0.00016438,2]
[358940292,1745570267764,-500.0,0.00016438,2]
[358940293,1745570267786,-500.0,0.00016438,2]
[358940294,1745570267809,-958.5,0.00016438,2]
[358940295,1745570267830,-500.0,0.00016438,2]
[358940296,1745570267852,-500.0,0.00016438,2]
[358940297,1745570267875,-500.0,0.00016438,2]
[358940298,1745570267898,-500.0,0.00016438,2]
[358940299,1745570267920,-784.73,0.00016438,2]
[358940300,1745570267946,-389.46856044,0.00016438,2]
[358940301,1745570267968,-500.0,0.00016438,2]
[358940302,1745570267993,-500.0,0.00016438,2]
[358940303,1745570268023,-2171.65,0.00016438,2]
[358940304,1745570268046,-500.0,0.00016438,2]
[358940305,1745570268070,-368.56140455,0.00016438,2]
[358940306,1745570268093,-500.0,0.00016438,2]
[358940307,1745570268117,-2155.6,0.00016438,2]
[358940308,1745570268141,-3107.31,0.00016438,2]
[358940309,1745570268164,-848.6,0.00016438,2]
[358940310,1745570268188,-500.0,0.00016438,2]
[358940311,1745570268214,-500.0,0.00016438,2]
[358940312,1745570268237,-535.9626375,0.00016438,2]
[358940313,1745570268261,-500.0,0.00016438,2]
[358940314,1745570268285,-500.0,0.00016438,2]
[358940315,1745570268307,-500.0,0.00016438,2]
[358940316,1745570268330,-500.0,0.00016438,2]
[358940317,1745570268353,-500.0,0.00016438,2]
[358940318,1745570268375,-1229.32,0.00016438,2]
[358940319,1745570268397,-511.11888775,0.00016438,2]
[358940320,1745570268420,-500.0,0.00016438,2]
[358940321,1745570268443,-500.0,0.00016438,2]
[358940322,1745570268468,-151.0,0.00016438,2]
[358940323,1745570268489,-151.0,0.00016438,2]
[358940324,1745570268514,-500.0,0.00016438,2]
[358940325,1745570268537,-500.0,0.00016438,2]
[358940326,1745570268560,-500.0,0.00016438,2]
[358940327,1745570268584,-500.0,0.00016438,2]
[358940328,1745570268606,-500.0,0.00016438,2]
[358940329,1745570268630,-151.0,0.00016438,2]
[358940330,1745570268654,-500.0,0.00016438,2]
[358940331,1745570268678,-151.0,0.00016438,2]
[358940332,1745570268702,-890.47,0.00016438,2]
[358940333,1745570268726,-500.0,0.00016438,2]
[358940334,1745570268749,-1012.99,0.00016438,2]
[358940335,1745570268773,-500.0,0.00016438,2]
[358940336,1745570268796,-258.73386,0.00016438,2]
[358940337,1745570268820,-593.97187001,0.00016438,2]
[358940338,1745570268843,-263.59641509,0.00016438,2]
[358940339,1745570268866,-500.0,0.00016438,2]
[358940340,1745570268888,-838.19,0.00016438,2]
[358940341,1745570268911,-500.0,0.00016438,2]
[358940342,1745570268940,-500.0,0.00016438,2]
[358940343,1745570268964,-500.0,0.00016438,2]
[358940344,1745570268989,-500.0,0.00016438,2]
[358940345,1745570269013,-704.19,0.00016438,2]
[358940346,1745570269037,-500.0,0.00016438,2]
[358940347,1745570269060,-961.54,0.00016438,2]
[358940348,1745570269084,-151.0,0.00016438,2]
[358940349,1745570269107,-3617.67,0.00016438,2]
[358940350,1745570269130,-500.0,0.00016438,2]
[358940351,1745570269152,-500.0,0.00016438,2]
[358940352,1745570269175,-2988.237995,0.00016438,2]
[358940353,1745570269198,-2988.237995,0.00016438,2]
[358940354,1745570269220,-500.0,0.00016438,2]
[358940355,1745570269244,-2988.237995,0.00016438,2]
[358940356,1745570269266,-2988.237995,0.00016438,2]
[358940357,1745570269288,-500.0,0.00016438,2]
[358940358,1745570269310,-825.7,0.00016438,2]
[358940359,1745570269333,-500.0,0.00016438,2]
[358940360,1745570269356,-500.0,0.00016438,2]
[358940361,1745570269379,-500.0,0.00016438,2]
[358940362,1745570269402,-500.0,0.00016438,2]
[358940363,1745570269426,-691.4,0.00016438,2]
[358940364,1745570269448,-500.0,0.00016438,2]
[358940365,1745570269472,-500.0,0.00016438,2]
[358940366,1745570269494,-500.0,0.00016438,2]
[358940367,1745570269516,-500.0,0.00016438,2]
[358940368,1745570269539,-708.76,0.00016438,2]
[358940369,1745570269563,-1051.19,0.00016438,2]
[358940370,1745570269584,-500.0,0.00016438,2]
[358940371,1745570269614,-500.0,0.00016438,2]
[358940372,1745570269636,-500.0,0.00016438,2]
[358940373,1745570269660,-255.53256901,0.00016438,2]
[358940374,1745570269682,-151.0,0.00016438,2]
[358940375,1745570269704,-287.6650246,0.00016438,2]
[358940376,1745570269726,-151.0,0.00016438,2]
[358940377,1745570269747,-151.0,0.00016438,2]
[358940378,1745570269768,-500.0,0.00016473,2]
[358940379,1745570269790,-500.0,0.00016473,2]
[358940380,1745570269813,-500.0,0.00016473,2]
[358940381,1745570269834,-263.06303348,0.00016473,2]
[358940382,1745570269861,-370.22839698,0.00016473,2]
[358940383,1745570269884,-151.0,0.00016473,2]
[358940384,1745570269907,-151.0,0.00016473,2]
[358940385,1745570269929,-151.0,0.00016473,2]
[358940386,1745570269955,-151.0,0.00016473,2]
[358940387,1745570269978,-151.0,0.00016473,2]
[358940388,1745570270000,-151.0,0.00016473,2]
[358940389,1745570270025,-151.0,0.00016473,2]
[358940390,1745570270046,-151.0,0.00016473,2]
[358940391,1745570270070,-269.468908,0.00016473,2]
[358940392,1745570270092,-269.468908,0.00016473,2]
[358940393,1745570270116,-151.0,0.00016473,2]
[358940394,1745570270138,-151.0,0.00016473,2]
[358940395,1745570270159,-151.0,0.00016473,2]
[358940396,1745570270182,-151.0,0.00016473,2]
[358940397,1745570270205,-151.0,0.00016473,2]
[358940398,1745570270229,-684.586252,0.00016473,2]
[358940399,1745570270250,-684.586252,0.00016473,2]
[358940400,1745570270273,-151.0,0.00016473,2]
[358940401,1745570270296,-492.611464,0.00016473,2]
[358940402,1745570270318,-492.611464,0.00016473,2]
[358940403,1745570270340,-151.0,0.00016473,2]
[358940404,1745570270362,-151.0,0.00016473,2]
[358940405,1745570270384,-151.0,0.00016473,2]
[358940406,1745570270406,-272.020465,0.00016473,2]
[358940407,1745570270429,-151.0,0.00016496,2]
[358940408,1745570270452,-151.0,0.00016496,2]
[358940409,1745570270475,-151.0,0.00016496,2]
[358940410,1745570270496,-151.0,0.00016496,2]
[358940411,1745570270518,-647.5040133,0.00016496,2]
[358940412,1745570270541,-151.0,0.000165,2]
[358940413,1745570270565,-151.0,0.000165,2]
[358940414,1745570270587,-151.0,0.000165,2]
[358940415,1745570270609,-151.0,0.000165,2]
[358940416,1745570270632,-151.0,0.000165,2]
[358940417,1745570270654,-246.801785,0.000165,2]
[358940418,1745570270679,-305.573492,0.000165,2]
[358940419,1745570270841,-305.573492,0.000165,2]
[358940420,1745570270865,-151.0,0.00016512,2]
[358940421,1745570270887,-151.0,0.00016512,2]
[358940422,1745570270911,-2422.75512971,0.00016512,2]
[358940423,1745570273715,620.84171917,0.00015961,2]
[358940424,1745570278990,500.0,0.00015052,2]
[358940425,1745570279022,500.0,0.00015052,2]
[358940426,1745570279065,174.04845978,0.00015052,2]
[358940427,1745570294628,172416.04572432,0.00015938,2]
[358940430,1745570733147,-305.87957297,0.00016238,2]
[358940431,1745570733170,-128.10438496,0.00016337,2]
[358940433,1745570838097,-270.06547272,0.00016249,2]
[358940434,1745570838123,-354.78914139,0.00016345,2]
[358940435,1745570838144,-582.7536119,0.00016346,2]
[358940436,1745570838166,-255.53256901,0.00016412,2]
[358940437,1745570838187,-300.0,0.00016434,2]
[358940438,1745570838206,-300.0,0.00016434,2]
[358940439,1745570838227,-434.58920342,0.00016434,2]
[358940440,1745570838248,-2625.51386883,0.00016435,2]
[358940443,1745570944247,311.70046,0.00015436,2]
[358940445,1745570957352,22568.61333893,0.00015436,2]
[358940446,1745570968100,-2156.29918841,0.00015436,2]
[358940447,1745570976787,-175.08747266,0.00015436,2]
[358940448,1745570976810,-628.5729819,0.00016337,2]
[358940449,1745570976839,-500.0,0.00016345,2]
[358940450,1745570976867,-500.0,0.00016345,2]
[358940451,1745570976896,-500.0,0.00016345,2]
[358940452,1745570976923,-500.0,0.00016345,2]
[358940453,1745570976951,-500.0,0.00016345,2]
[358940454,1745570976984,-500.0,0.00016345,2]
[358940455,1745570977012,-500.0,0.00016345,2]
[358940456,1745570977040,-500.0,0.00016345,2]
[358940457,1745570977067,-500.0,0.00016345,2]
[358940458,1745570977093,-500.0,0.00016345,2]
[358940459,1745570977122,-500.0,0.00016345,2]
[358940460,1745570977149,-500.0,0.00016345,2]
[358940461,1745570977178,-500.0,0.00016345,2]
[358940462,1745570977210,-500.0,0.00016345,2]
[358940463,1745570977237,-500.0,0.00016345,2]
[358940464,1745570977265,-500.0,0.00016345,2]
[358940465,1745570977293,-500.0,0.00016345,2]
[358940466,1745570977320,-500.0,0.00016345,2]
[358940467,1745570977349,-500.0,0.00016345,2]
[358940468,1745570977377,-274.49522054,0.00016345,2]
[358940469,1745570977399,-524.4782507,0.00016346,2]
[358940470,1745570977425,-500.0,0.00016434,2]
[358940471,1745570977452,-500.0,0.00016434,2]
[358940472,1745570977474,-27374.48613117,0.00016435,2]
[358940473,1745570977497,-5000.0,0.00016437,2]
[358940474,1745570977519,-151.0,0.00016438,2]
[358940475,1745570977541,-151.0,0.00016438,2]
[358940476,1745570977563,-500.0,0.00016438,2]
[358940477,1745570977586,-222.121607,0.00016438,2]
[358940478,1745570977609,-222.121607,0.00016438,2]
[358940479,1745570977632,-500.0,0.00016438,2]
[358940480,1745570977654,-500.0,0.00016438,2]
[358940481,1745570977677,-500.0,0.00016438,2]
[358940482,1745570977700,-151.0,0.00016438,2]
[358940483,1745570977723,-500.0,0.00016438,2]
[358940484,1745570977748,-151.0,0.00016438,2]
[358940485,1745570977927,-500.0,0.00016438,2]
[358940486,1745570977950,-500.0,0.00016438,2]
[358940487,1745570977972,-500.0,0.00016438,2]
[358940488,1745570977996,-500.0,0.00016438,2]
[358940489,1745570978018,-825.4,0.00016438,2]
[358940490,1745570978041,-332.55183336,0.00016438,2]
[358940491,1745570978064,-500.0,0.00016438,2]
[358940492,1745570978087,-500.0,0.00016438,2]
[358940493,1745570978109,-500.0,0.00016438,2]
[358940494,1745570978130,-500.0,0.00016438,2]
[358940495,1745570978153,-500.0,0.00016438,2]
[358940496,1745570978177,-547.65086807,0.00016438,2]
[358940497,1745570978202,-686.6,0.00016438,2]
[358940498,1745570978224,-690.03,0.00016438,2]
[358940499,1745570978245,-500.0,0.00016438,2]
[358940500,1745570978267,-500.0,0.00016438,2]
[358940501,1745570978292,-800.68,0.00016438,2]
[358940502,1745570978313,-500.0,0.00016438,2]
[358940503,1745570978336,-500.0,0.00016438,2]
[358940504,1745570978359,-516.52825798,0.00016438,2]
[358940505,1745570978381,-813.91,0.00016438,2]
[358940506,1745570978403,-151.0,0.00016438,2]
[358940507,1745570978432,-151.0,0.00016438,2]